Cogmind - Beta 12 X6 @@@ ROGUE MODE // 2023.02.24 @ 21:25:48 // AFD2019/Pay2Buy Player: ArabianSandBoa Result: Self-destructed Performance ------------- Evolutions (2) 1000 Regions Visited (7) 1400 Robots Destroyed (22) 110 Value Destroyed (543) 543 Prototype IDs (2) 40 Alien Tech Used (0) 0 Bonus (-36) -36 TOTAL SCORE: 3057 Bonus ------- High Alert Combat Kills 2 Follower Combat Kills 28 Aligned with FarCom 300 Friendly Fire -366 Cogmind --------- Core Integrity 315/550 Matter 212/300 Energy 100/100 System Corruption 0% Temperature Warm (184) Movement Core (50) Location -8/Materials Parts ------- > --- POWER (1) -------- (None) > --- PROPULSION (2) --- (None) > --- UTILITY (6) ------ (None) > --- WEAPON (2) ------- Makeshift Spear > --- INVENTORY (10) --- Experimental Sensor Array Medium Armor Plating Hardened Heavy Armor Plating Long-range Tractor Beam Grenade Launcher Mini Grenade Launcher Mini Grenade Launcher Mining Laser Signal Generator Peak State ------------ > --- POWER ------------ Improved Deuterium Engine > --- PROPULSION ------- Armored Wheel Armored Wheel > --- UTILITY ---------- Medium Armor Plating Heavy Armor Plating Hardened Heavy Armor Plating Improved Shield Generator > --- WEAPON ----------- Heavy EM Shotgun Heavy EM Shotgun > --- INVENTORY -------- Experimental Sensor Array Long-range Tractor Beam Grenade Launcher Mini Grenade Launcher Mini Grenade Launcher Mining Laser Signal Generator [Rating: 38] Favorites ----------- Power Improved Deuterium Engine Engine Improved Deuterium Engine Propulsion Armored Wheel Wheel Armored Wheel Utility Medium Armor Plating Device Experimental Sensor Array Protection Medium Armor Plating Weapon Mini Grenade Launcher Energy Gun Heavy EM Shotgun Launcher Mini Grenade Launcher Special Weapon Mining Laser Piercing Weapon Makeshift Spear Build | -11 -10 -10 -9 -9 -9 -8 -8 ------- Run | Jun Mat Min Mat Min Exi Min Mat Slots Evolved 4 | . . . 2 . . . 2 Power . | . . . . . . . . Propulsion . | . . . . . . . . Utility 4 | . . . 2 . . . 2 Weapon . | . . . . . . . . Parts Attached 9 | . . . 1 . . 2 6 Power . | . . . . . . . . Engine . | . . . . . . . . Core . | . . . . . . . . Reactor . | . . . . . . . . Propulsion . | . . . . . . . . Treads . | . . . . . . . . Leg . | . . . . . . . . Wheel . | . . . . . . . . Hover . | . . . . . . . . Flight . | . . . . . . . . Utility 1 | . . . 1 . . . . Device 1 | . . . 1 . . . . Storage . | . . . . . . . . Processor . | . . . . . . . . Hackware . | . . . . . . . . Protection . | . . . . . . . . Artifact . | . . . . . . . . Weapon 8 | . . . . . . 2 6 Energy Gun 4 | . . . . . . . 4 Energy Cannon . | . . . . . . . . Ballistic Gun . | . . . . . . . . Ballistic Cannon . | . . . . . . . . Launcher 2 | . . . . . . 2 . Special Weapon 2 | . . . . . . . 2 Impact Weapon . | . . . . . . . . Slashing Weapon . | . . . . . . . . Piercing Weapon . | . . . . . . . . Special Melee Weapon . | . . . . . . . . Unidentified Prototypes 1 | . . . 1 . . . . Parts Lost 8 | . . . . 1 . . 7 Power 1 | . . . . . . . 1 Propulsion 2 | . . . . . . . 2 Utility 3 | . . . . 1 . . 2 Weapon 2 | . . . . . . . 2 Highest Loss Streak 7 | . . . . 1 . . 7 To Critical Strikes . | . . . . . . . . Average Slot Usage (%) 66 | . . 71 71 69 66 66 55 Wheel 18 | . . 14 11 18 22 22 17 Device 4 | . . . 16 6 . . 2 Protection 21 | . . 28 22 21 22 22 12 Energy Gun 9 | . . . . 15 22 4 9 Launcher 12 | . . 28 22 6 . 17 5 Naked Turns 17 | . 17 . . . . . . Heaviest Build 37 | . . 16 18 30 30 30 37 Greatest Support 24 | 3 3 12 12 24 24 24 24 Greatest Overweight (x) 1 | . . 1 1 1 1 1 1 Average Overweight (x) . | . . 1 1 . 1 . . Largest Inventory Capacity 10 | . 10 10 10 10 10 10 10 Average Capacity 10 | . 10 10 10 10 10 10 10 Most Carried 10 | . . 3 3 7 7 7 10 Average Carried 5 | . . 1 2 5 7 7 8 Final Capacity 10 | 10 10 10 10 10 10 10 10 Final Carried 10 | . . 3 2 7 7 7 10 Class Distribution -------------------- 100% | Mutant Dominant Class ---------------- Mutant | -10/Mines Mutant | -9/Materials Mutant | -9/Mines Mutant | -9/Exiles Mutant | -8/Mines Mutant | -8/Materials Resources | -11 -10 -10 -9 -9 -9 -8 -8 ----------- Run | Jun Mat Min Mat Min Exi Min Mat Matter Collected 487 | . . 32 165 117 . . 173 Remotely 239 | . . . 165 74 . . . Salvage Created 406 | . . 65 102 37 . 29 173 Parts . | . . . . . . . . Haulers Intercepted . | . . . . . . . . Recyclers Shooed . | . . . . . . . . Parts Field Recycled . | . . . . . . . . Retrieved Matter . | . . . . . . . . Parts Self-Destructed . | . . . . . . . . Prevented . | . . . . . . . . Kills | -11 -10 -10 -9 -9 -9 -8 -8 ------- Run | Jun Mat Min Mat Min Exi Min Mat Combat Hostiles Destroyed 15 | . . 2 6 1 . 3 3 Guns 3 | . . . . 1 . . 2 AOE 11 | . . 2 6 . . 3 . Classes Destroyed 6 | . . 1 3 2 . . . Worker 2 | . . . 1 . . 1 . Builder 1 | . . . . 1 . . . Tunneler 3 | . . . 3 . . . . Swarmer 9 | . . . 6 . . 3 . Grunt 6 | . . 2 1 . . . 3 Demolisher 1 | . . . . 1 . . . Best Kill Streak 5 | . . 2 5 1 . 3 1 Combat Bots Only 3 | . . 2 3 1 . 3 1 Max Kills in Single Turn 3 | . . 2 3 1 . 2 1 Gunslinging . | . . . . . . . . Exploded 2 | . . 2 2 . . 2 . Melee . | . . . . . . . . Uniques/NPCs Destroyed . | . . . . . . . . Combat | -11 -10 -10 -9 -9 -9 -8 -8 -------- Run | Jun Mat Min Mat Min Exi Min Mat Damage Taken 1379 | . . 21 199 140 . 47 972 Core 269 | . . . 34 . . . 235 Absorbed by Shields . | . . . . . . . . Core Remaining (%) 97 | 100 . 100 . . . 91 . Volleys Fired 47 | . . 1 7 12 . 9 18 Largest 2 | . . 2 2 2 . 2 2 Hottest 100 | . . 60 60 100 . 100 100 Shots Fired 73 | . . 2 11 19 . 12 29 Gun 40 | . . . . 14 . 2 24 Cannon . | . . . . . . . . Launcher 30 | . . 2 11 5 . 10 2 Special 3 | . . . . . . . 3 Kinetic . | . . . . . . . . Thermal 3 | . . . . . . . 3 Explosive 30 | . . 2 11 5 . 10 2 Electromagnetic 40 | . . . . 14 . 2 24 Robot Hit Streak 12 | . . . . 5 . . 12 Robot Miss Streak 5 | . . 1 2 4 . . 5 Penetration Max . | . . . . . . . . Secondary Targets 1 | . . . . . . . 1 Max Gunslinging Chain 1 | . . . . . . . 1 Shots Hit Robots 26 | . . . . 7 . . 19 Core Hits 30 | . . 3 11 3 . 4 9 Critical Kills . | . . . . . . . . Critical Parts Destroyed . | . . . . . . . . Critical Strikes . | . . . . . . . . Melee Attacks 1 | . . . . . . . 1 Impact . | . . . . . . . . Slashing . | . . . . . . . . Piercing 1 | . . . . . . . 1 Sneak Attacks . | . . . . . . . . Combat Hostiles . | . . . . . . . . Follow-up Attacks . | . . . . . . . . Damage Inflicted 1482 | . . 144 565 219 . 171 383 Guns 493 | . . . . 110 . . 383 Cannons . | . . . . . . . . Explosions 989 | . . 144 565 109 . 171 . Melee . | . . . . . . . . Ramming . | . . . . . . . . Kinetic . | . . . . . . . . Thermal 76 | . . . . 76 . . . Explosive 913 | . . 144 565 33 . 171 . Electromagnetic 493 | . . . . 110 . . 383 Impact . | . . . . . . . . Slashing . | . . . . . . . . Piercing . | . . . . . . . . Highest Corruption . | . . . . . . . . Average Corruption . | . . . . . . . . Corruption Purged . | . . . . . . . . Corruption Blocked . | . . . . . . . . Overload Shots . | . . . . . . . . Overflow Damage 26 | . . . 17 . . 9 . Projectiles . | . . . . . . . . Explosions 26 | . . . 17 . . 9 . Melee . | . . . . . . . . Knockbacks . | . . . . . . . . Impact . | . . . . . . . . Kinetic . | . . . . . . . . Secondary . | . . . . . . . . Self-Inflicted Damage 145 | . . 21 54 42 . 28 . Shots 6 | . . 1 3 1 . 1 . Rammed . | . . . . . . . . Targets Rammed . | . . . . . . . . Kicked . | . . . . . . . . Crushed . | . . . . . . . . Highest Temperature 412 | . . 3 2 84 . 42 412 Average Temperature 153 | . . 2 2 35 . 12 219 Received Heat Transfer 549 | . . . 27 . . . 522 Effects 2 | . . . . . . . 2 Shutdowns 1 | . . . . . . . 1 Matter Decay 1 | . . . . . . . 1 Siege Activations . | . . . . . . . . Robots Corrupted 1 | . . . . . . . 1 Combat Hostiles 1 | . . . . . . . 1 Parts Fried . | . . . . . . . . Impact Corruptions . | . . . . . . . . Robots Melted . | . . . . . . . . Combat Hostiles . | . . . . . . . . Parts Melted . | . . . . . . . . Heat Transferred 50 | . . . . 50 . . . Parts Sabotaged . | . . . . . . . . Parts Stolen . | . . . . . . . . Parts Stripped . | . . . . . . . . Power Chain Reactions 1 | . . . . 1 . . . Missiles Intercepted . | . . . . . . . . Alert | -11 -10 -10 -9 -9 -9 -8 -8 ------- Run | Jun Mat Min Mat Min Exi Min Mat Peak Influence 414 | . . 62 414 156 . 248 139 Initial 145 | . . . 24 145 . . 18 Average 95 | . . 62 140 76 . 135 83 Maximum Alert Level 2 | . . . 2 . . 1 . Low Security (%) 88 | . 100 100 67 100 . 64 100 Level 1 11 | . . . 30 . . 35 . Level 2 . | . . . 2 . . . . Level 3 . | . . . . . . . . Level 4 . | . . . . . . . . Level 5 . | . . . . . . . . High Security . | . . . . . . . . Max Security . | . . . . . . . . Squads Dispatched 3 | . . . 1 . . . 2 Investigation 1 | . . . 1 . . . . Extermination . | . . . . . . . . Reinforcement 1 | . . . . . . . 1 Assault . | . . . . . . . . Garrison 1 | . . . . . . . 1 Intercept . | . . . . . . . . Searches Triggered . | . . . . . . . . Construction Impeded . | . . . . . . . . Haulers Reinforced . | . . . . . . . . Active Scanning Responses . | . . . . . . . . Cargo Convoy Interrupts . | . . . . . . . . Stealth | -11 -10 -10 -9 -9 -9 -8 -8 --------- Run | Jun Mat Min Mat Min Exi Min Mat Distress Signals 1 | . . . . . . . 1 Communications Jammed . | . . . . . . . . Distress Signals . | . . . . . . . . Times Spotted 19 | . . . 8 1 . 3 7 Peak Tracking Total 6 | . . . 6 1 . 3 6 Tactical Retreats . | . . . . . . . . Traps | -11 -10 -10 -9 -9 -9 -8 -8 ------- Run | Jun Mat Min Mat Min Exi Min Mat Traps Triggered 1 | . . . 1 . . . . Indirectly . | . . . . . . . . Trap Hack Attempts . | . . . . . . . . Triggered . | . . . . . . . . Disarmed . | . . . . . . . . Reprogrammed . | . . . . . . . . Reused . | . . . . . . . . Traps Extracted . | . . . . . . . . Installed . | . . . . . . . . Triggered . | . . . . . . . . Machines | -11 -10 -10 -9 -9 -9 -8 -8 ---------- Run | Jun Mat Min Mat Min Exi Min Mat Machines Disabled 15 | . . . 2 2 . 7 4 Max in Single Turn 1 | . . . 1 1 . 1 1 Machines Repaired . | . . . . . . . . Machines Sabotaged . | . . . . . . . . Overloaded Fab Kills . | . . . . . . . . Hacking | -11 -10 -10 -9 -9 -9 -8 -8 --------- Run | Jun Mat Min Mat Min Exi Min Mat Machines Accessed . | . . . . . . . . Terminals . | . . . . . . . . Fabricators . | . . . . . . . . Repair Stations . | . . . . . . . . Recycling Units . | . . . . . . . . Scanalyzers . | . . . . . . . . Garrison Access . | . . . . . . . . Total Hacks . | . . . . . . . . Successful . | . . . . . . . . Failed . | . . . . . . . . Catastrophic . | . . . . . . . . Database Lockouts . | . . . . . . . . Manual . | . . . . . . . . Terminals . | . . . . . . . . Fabricators . | . . . . . . . . Repair Stations . | . . . . . . . . Recycling Units . | . . . . . . . . Scanalyzers . | . . . . . . . . Garrison Access . | . . . . . . . . Terminal Hacks . | . . . . . . . . Fabricator Hacks . | . . . . . . . . Repair Station Hacks . | . . . . . . . . Recycling Unit Hacks . | . . . . . . . . Scanalyzer . | . . . . . . . . Garrison Access Hacks . | . . . . . . . . Unauthorized Hacks . | . . . . . . . . Terminals . | . . . . . . . . Fabricators . | . . . . . . . . Repair Stations . | . . . . . . . . Recycling Units . | . . . . . . . . Scanalyzers . | . . . . . . . . Garrison Access . | . . . . . . . . Data Cores Recovered . | . . . . . . . . Used . | . . . . . . . . Hacking Detections . | . . . . . . . . Full Trace Events . | . . . . . . . . Feedback Events . | . . . . . . . . Feedback Blocked . | . . . . . . . . Robot Schematics Acquired . | . . . . . . . . Robots Built . | . . . . . . . . Authchips . | . . . . . . . . Time . | . . . . . . . . Total Robot Build Rating . | . . . . . . . . Part Schematics Acquired . | . . . . . . . . Parts Built . | . . . . . . . . Authchips . | . . . . . . . . Time . | . . . . . . . . Total Part Build Rating . | . . . . . . . . Parts Repaired . | . . . . . . . . Time . | . . . . . . . . Parts Recycled . | . . . . . . . . Recycled Matter . | . . . . . . . . Retrieved Matter . | . . . . . . . . Retrieved Components . | . . . . . . . . Parts Scanalyzed . | . . . . . . . . Part Schematics Acquired . | . . . . . . . . Parts Damaged . | . . . . . . . . Bothacking | -11 -10 -10 -9 -9 -9 -8 -8 ------------ Run | Jun Mat Min Mat Min Exi Min Mat Used RIF Installer . | . . . . . . . . Robots Hacked . | . . . . . . . . Non-combat . | . . . . . . . . Combat . | . . . . . . . . Robot Hacks Applied . | . . . . . . . . Relay Couplers Released . | . . . . . . . . Fabnet Peak Effective % . | . . . . . . . . Robots Rewired . | . . . . . . . . Allies Hacked . | . . . . . . . . Hacks Repelled . | . . . . . . . . Allies | -11 -10 -10 -9 -9 -9 -8 -8 -------- Run | Jun Mat Min Mat Min Exi Min Mat Total Allies 6 | . . 3 . 3 . . . Largest Group 3 | . . 3 3 3 . . . Highest-Rated Group 79 | . . 40 40 79 . . . Highest-Rated Ally 31 | . . 16 16 31 . . . Total Orders . | . . . . . . . . Ally Attacks 23 | . . . 12 11 . . . Total Damage 219 | . . . 156 63 . . . Kills 4 | . . . 4 . . . . Allies Corrupted . | . . . . . . . . Allies Melted . | . . . . . . . . Intel | -11 -10 -10 -9 -9 -9 -8 -8 ------- Run | Jun Mat Min Mat Min Exi Min Mat Robot Analysis Total . | . . . . . . . . Derelict Logs Recovered . | . . . . . . . . Drone Launches . | . . . . . . . . Drone Recoveries . | . . . . . . . . Exploration | -11 -10 -10 -9 -9 -9 -8 -8 ------------- Run | Jun Mat Min Mat Min Exi Min Mat Turns Passed 1974 | . 17 239 150 729 224 450 165 Spaces Moved 1696 | 1 33 199 114 608 214 450 77 Core 34 | 1 33 . . . . . . Treads . | . . . . . . . . Legs . | . . . . . . . . Wheels 1662 | . . 199 114 608 214 450 77 Hover . | . . . . . . . . Flight . | . . . . . . . . Fastest Speed 50 | 50 50 105 105 90 105 90 90 Average Speed 100 | 50 50 105 105 104 105 92 96 Slowest Speed 105 | 50 50 105 105 105 105 105 105 Overloaded Moves . | . . . . . . . . Propulsion Burnouts . | . . . . . . . . Robots Hopped . | . . . . . . . . Cave-ins Triggered . | . . . . . . . . Exploration Rate (%) 45 | 2 17 59 22 98 64 93 8 Regions Visited 7 Branch Regions 4 Pre-discovered Areas . | . . . . . . . . Known Exits Taken . | . . . . . . . . Unknown Exits Taken 7 | 1 1 1 1 1 1 1 . Scrap Searched . | . . . . . . . . Spaces Dug 32 | . . . 12 20 . . . Terrain Destroyed 246 | . . 23 71 53 . 85 14 Melee . | . . . . . . . . Projectile . | . . . . . . . . AOE 246 | . . 23 71 53 . 85 14 Terrain Rammed . | . . . . . . . . Walls Destroyed . | . . . . . . . . Machines Disabled . | . . . . . . . . Actions | -11 -10 -10 -9 -9 -9 -8 -8 --------- Run | Jun Mat Min Mat Min Exi Min Mat Total 1886 | . 32 227 133 683 213 469 129 Wait 130 | . . 25 12 59 . 9 25 Move 1689 | . 32 198 113 607 213 449 77 Hop . | . . . . . . . . Pick Up 4 | . . 3 . 1 . . . Fast Attach . | . . . . . . . . Attach 1 | . . . 1 . . . . Detach 6 | . . . . 4 . . 2 Swap 8 | . . . . . . 2 6 Drop . | . . . . . . . . Fire 47 | . . 1 7 12 . 9 18 Melee 1 | . . . . . . . 1 Ram . | . . . . . . . . Kick . | . . . . . . . . Crush . | . . . . . . . . Escape Stasis . | . . . . . . . . Rewire . | . . . . . . . . Trap . | . . . . . . . . Miscellaneous . | . . . . . . . . Route ------- -11/Junkyard -10/Materials -10/Mines -9/Materials -9/Mines (discovered 3 exits: [*Mat x2] / [*Exi]) -9/Exiles -8/Mines (discovered 2 exits: [*Mat x2]) -8/Materials History --------- Turn | Location | Event 1 | -11/Junkyard | Discovered new exit (range 0) 1 | -11/Junkyard | Entered Materials 12 | -10/Materials | Discovered new exit (range 13) 18 | -10/Materials | Entered Mines 94 | -10/Mines | YI-UF0 nonchalantly dropped a Grenade Launcher on the ground 123 | -10/Mines | Found a damaged Exp. Sensor Array with a note attached 125 | -10/Mines | Found Prototype Device 150 | -10/Mines | Assisted by bots powering up and referring to "LRC-V3" 230 | -10/Mines | Discovered new exit (range 14) 243 | -10/Mines | Met a Derelict testing a Signal Generator 244 | -10/Mines | Found Signal Generator 257 | -10/Mines | Entered Materials 257 | -9/Materials | Accompanied by 3 allies 257 | -9/Materials | Evolved 2 slots: Utility x2 273 | -9/Materials | Identified Exp. Sensor Array 313 | -9/Materials | Build established: Mutant 398 | -9/Materials | Discovered new exit (range 7) 407 | -9/Materials | Entered Mines 448 | -9/Mines | Received a Mining Laser from a helpful Derelict 581 | -9/Mines | Assembled infested the area 586 | -9/Mines | Assisted by a Guerilla fighting off Assembled 688 | -9/Mines | Discovered new exit (range 10) 688 | -9/Mines | Discovered new exit (range 9) 1129 | -9/Mines | Deemed a non-threat by the Exiles lab entrance 1129 | -9/Mines | Discovered new exit (range 5) 1136 | -9/Mines | Entered Exiles 1164 | -9/Exiles | Met 8R-AWN 1181 | -9/Exiles | Met EX-HEX 1219 | -9/Exiles | Met EX-DEC 1265 | -9/Exiles | Met EX-BIN 1280 | -9/Exiles | Aligned with FarCom system 1281 | -9/Exiles | Given EX-Vault access code 1349 | -9/Exiles | Discovered new exit (range 12) 1360 | -9/Exiles | Entered Mines 1499 | -8/Mines | Discovered new exit (range 8) 1618 | -8/Mines | Discovered new exit (range 13) 1810 | -8/Mines | Entered Materials 1810 | -8/Materials | Evolved 2 slots: Utility x2 1961 | -8/Materials | Garrison activated, responded to threat 1975 | -8/Materials | Self-destructed Last Messages --------------- 01956_ K-01 Serf collects debris. 01958_ U-05 Engineer builds a Wall. 01959_ K-01 Serf collects debris. 01961_ Y-45 Defender calls for garrison reinforcements. 01961_ ALERT: Activating Garrison Access M001. 01962_ Y-45 Defender emerges from the garrison. 01962_ U-05 Engineer lays Concrete. 01964_ K-01 Serf collects debris. 01964_ Arm. Wheel destroyed. 01964_ U-05 Engineer builds a Wall. 01966_ Critical hit (Burn: +37). 01967_ K-01 Serf collects debris. 01968_ U-05 Engineer builds a Wall. 01969_ Hvy. EM Shotgun destroyed. [Purchased: Mak. Spear] 01971_ K-01 Serf collects debris. 01972_ Acquired 60 matter. 01972_ U-05 Engineer builds a Wall. 01972_ Arm. Wheel destroyed. 01974_ Imp. Deuterium Engine destroyed. Map ----- +----------------------------------------------------+ | ?????????????????????????????????????????????????? | | ?????????????????????????????????????????????????? | | ?????????????????????????????????????????????????? | | ?????????????????????????????????????????????????? | | ?????????????????????????????????????????????????? | | ??????????????????????? ???????????????????????? | | ??????????????????????# ???????????????????????? | | ??????????????????????# ########???????????????? | | ??????????????????????# #???????????????? | | ??????????????????????# +???????????????? | | ??????????????????????# #???????????????? | | ??????????????????????# #???????????????? | | ???????????????######## #???????????????? | | ????????????##### #### #???????????????? | | ????????#####T ## ##u# +???????????????? | | ????????# #???????????????? | | ?????#### #???????????????? | | ?????# "" ##??????????????? | | ?????#"G YY """ ##### #????????? | | ?????# "" R" ????????? | | ?????#### "" w???????? | | ????????# #???????? | | ????????# ###+#??????????? | | ????????# #### r#??????????????? | | ????? #??## #??????????????? | | ????######+##???# @Y o/ #????????? | | ????????????????#+########/########??????????????? | | ???????????????# ??# #???????????????????? | | ???????????????# """ # " #???????????????????? | | ???????????????# """ # "T" #???????????????????? | | ???????????????# """ # #???????????????????? | | ???????????????# # #???????????????????? | | ???????????????# # #???????????????????? | | ???????????????###############???????????????????? | | ?????????????????????????????????????????????????? | | ?????????????????????????????????????????????????? | | ?????????????????????????????????????????????????? | | | | | | | | | | | | | | | | | | | | | | | | | | | +----------------------------------------------------+ Best States ------------- Heat Dissipation 31 Energy Generation 16 Energy Capacity 290 Matter Stores 229 Matter Capacity 300 Sight Range 16 Robot Scan Range 20 Terrain Scan Density 10 Armor Coverage 1425 Evasion (%) 50 Item Schematics ----------------- None Robot Schematics ------------------ None Fabricated ------------ Nothing Alien Tech Used ----------------- None Achievements -------------- None Challenges ------------ None Cogshop Purchases (14) ------------------------ Mni. Grenade Launcher (1049) Mni. Grenade Launcher (1049) Med. Armor Plating (699) Med. Armor Plating (699) Arm. Wheel (769) Lrn. Tractor Beam (868) Hvy. EM Shotgun (842) Hvy. EM Shotgun (842) Hvy. Armor Plating (887) Arm. Wheel (713) Imp. Deuterium Engine (791) Hrd. Heavy Armor Plating (914) Imp. Shield Generator (937) Mak. Spear (904) Game ------ Seed BeamNullSword Manual? 1 Play Time 00:17:17 Cumulative 374.3 hours Start 2023.02.24 @ 21:11:12 End 2023.02.24 @ 21:25:48 Sessions 1 Manual Loads 0 Difficulty Rogue Special Mode AFD2019/Pay2Buy Game No. 437 Rogue 437 Adventurer 0 Explorer 0 Win Type - Total 0 Types 0/0/0/0/0/0/0/0/0 Lore% 51 Gallery% 74 Achievement% 61 Wizard Run 0 Options --------- ASCII 0 Keyboard 0 Movement Mouse Keybinds 0 Fullscreen 2 Font 24/Smallcaps Map View 76x50 Tactical HUD 1 Map Filters NONE Filters NONE Steam 1 RUN: 1a19f4f5-047a-402d-93af-7cb4a598767b